[Event "*** SCC Grand Prix: Titled Tuesday Blitz"]
[Site "Chess.com"]
[Date "2020.06.02"]
[Round "5"]
[White "penguingm1"]
[Black "EvgenyRomanov"]
[Result "0-1"]
[WhiteElo "2929"]
[BlackElo "2670"]
[TimeControl "180+1"]
[EndTime "10:58:18 PDT"]
[Termination "EvgenyRomanov won by resignation"]

1. d4 {[%clk 0:03:00.9]} 1... Nf6 {[%clk 0:02:58.9]} 2. c4 {[%clk 0:03:01.2]}
2... e6 {[%clk 0:02:59.1]} 3. Nc3 {[%clk 0:03:01.5]} 3... Bb4 {[%clk 0:02:58.4]}
4. Qc2 {[%clk 0:03:01.9]} 4... d6 {[%clk 0:02:56.3]} 5. Nf3 {[%clk 0:03:02]}
5... Nbd7 {[%clk 0:02:53.8]} 6. g3 {[%clk 0:03:02.4]} 6... O-O {[%clk
0:02:52.7]} 7. Bg2 {[%clk 0:03:02.9]} 7... e5 {[%clk 0:02:52.1]} 8. O-O {[%clk
0:03:03.3]} 8... Re8 {[%clk 0:02:50.8]} 9. Rd1 {[%clk 0:03:03.4]} 9... h6 {[%clk
0:02:42]} 10. dxe5 {[%clk 0:02:31.1]} 10... dxe5 {[%clk 0:02:42.9]} 11. b3
{[%clk 0:02:26.4]} 11... c6 {[%clk 0:02:38.1]} 12. Bb2 {[%clk 0:02:23.8]} 12...
Qc7 {[%clk 0:02:35.9]} 13. a3 {[%clk 0:02:20.4]} 13... Bf8 {[%clk 0:02:35.4]}
14. b4 {[%clk 0:02:19.5]} 14... a5 {[%clk 0:02:31.3]} 15. b5 {[%clk 0:01:51.8]}
15... Nc5 {[%clk 0:02:30]} 16. a4 {[%clk 0:01:43.3]} 16... Bg4 {[%clk
0:02:18.4]} 17. h3 {[%clk 0:01:28.5]} 17... Be6 {[%clk 0:02:16.3]} 18. Nd2
{[%clk 0:00:56.4]} 18... Rad8 {[%clk 0:02:10.5]} 19. Nce4 {[%clk 0:00:55.6]}
19... Nfxe4 {[%clk 0:02:04.2]} 20. Nxe4 {[%clk 0:00:56.5]} 20... f5 {[%clk
0:02:00.4]} 21. Nxc5 {[%clk 0:00:46.2]} 21... Bxc5 {[%clk 0:02:01.3]} 22. e3
{[%clk 0:00:44.6]} 22... Bb4 {[%clk 0:01:46.8]} 23. b6 {[%clk 0:00:24.8]} 23...
Qf7 {[%clk 0:01:24.2]} 24. Bxe5 {[%clk 0:00:21.3]} 24... Bxc4 {[%clk 0:01:23.2]}
25. Qb2 {[%clk 0:00:20.7]} 25... Bd5 {[%clk 0:01:07.2]} 26. Bf1 {[%clk
0:00:19.6]} 26... Bf3 {[%clk 0:00:42.1]} 27. Rd4 {[%clk 0:00:14.8]} 27... Kh7
{[%clk 0:00:38]} 28. Rc1 {[%clk 0:00:13.7]} 28... Be4 {[%clk 0:00:31.8]} 29. Bc4
{[%clk 0:00:12]} 29... Qh5 {[%clk 0:00:31.1]} 30. Kh2 {[%clk 0:00:04.5]} 30...
Rxd4 {[%clk 0:00:23.7]} 31. Bxd4 {[%clk 0:00:05.4]} 31... Qf3 {[%clk 0:00:23.5]}
32. Rg1 {[%clk 0:00:05.5]} 32... Bf8 {[%clk 0:00:16.9]} 33. Be2 {[%clk
0:00:05.6]} 33... Qxf2+ {[%clk 0:00:16.3]} 0-1

[Event "*** SCC Grand Prix: Titled Tuesday Blitz"]
[Site "Chess.com"]
[Date "2020.06.02"]
[Round "5"]
[White "Igor_Lysyj"]
[Black "novendrapriasmoro"]
[Result "0-1"]
[WhiteElo "2757"]
[BlackElo "2605"]
[TimeControl "180+1"]
[EndTime "10:58:18 PDT"]
[Termination "novendrapriasmoro won by resignation"]

1. d4 {[%clk 0:03:00]} 1... Nf6 {[%clk 0:02:59.4]} 2. c4 {[%clk 0:02:59.7]} 2...
g6 {[%clk 0:02:59.3]} 3. Nc3 {[%clk 0:02:59.2]} 3... Bg7 {[%clk 0:02:59.3]} 4.
e4 {[%clk 0:02:58.8]} 4... d6 {[%clk 0:02:59.1]} 5. Nf3 {[%clk 0:02:58.9]} 5...
O-O {[%clk 0:02:58.6]} 6. Be2 {[%clk 0:02:59.1]} 6... Na6 {[%clk 0:02:56.7]} 7.
O-O {[%clk 0:02:58.1]} 7... e5 {[%clk 0:02:55.8]} 8. Be3 {[%clk 0:02:57.3]} 8...
c6 {[%clk 0:02:52.4]} 9. dxe5 {[%clk 0:02:54.5]} 9... dxe5 {[%clk 0:02:50.6]}
10. Qxd8 {[%clk 0:02:54.6]} 10... Rxd8 {[%clk 0:02:51.5]} 11. h3 {[%clk
0:02:54.8]} 11... Be6 {[%clk 0:02:48.7]} 12. Rfd1 {[%clk 0:02:52.4]} 12... Nd7
{[%clk 0:02:24.6]} 13. Rd2 {[%clk 0:02:28.9]} 13... Ndc5 {[%clk 0:02:05.4]} 14.
Rad1 {[%clk 0:02:04.7]} 14... Rxd2 {[%clk 0:02:01.6]} 15. Rxd2 {[%clk
0:02:01.1]} 15... f6 {[%clk 0:01:57.3]} 16. b3 {[%clk 0:01:52.8]} 16... Bf8
{[%clk 0:01:51.2]} 17. Ne1 {[%clk 0:01:49.1]} 17... Nd7 {[%clk 0:01:45.2]} 18.
Nc2 {[%clk 0:01:38.3]} 18... Nb4 {[%clk 0:01:39]} 19. Na4 {[%clk 0:01:30.4]}
19... Nxa2 {[%clk 0:01:34.1]} 20. Rd1 {[%clk 0:00:48.6]} 20... Nb4 {[%clk
0:01:27]} 21. Nxb4 {[%clk 0:00:47.7]} 21... Bxb4 {[%clk 0:01:27.9]} 22. Bg4
{[%clk 0:00:44.9]} 22... f5 {[%clk 0:01:16.5]} 23. exf5 {[%clk 0:00:44.7]} 23...
gxf5 {[%clk 0:01:17.4]} 24. Be2 {[%clk 0:00:44.8]} 24... f4 {[%clk 0:01:14.2]}
25. Bc1 {[%clk 0:00:42.8]} 25... Kf7 {[%clk 0:01:10.2]} 26. Bb2 {[%clk
0:00:38.1]} 26... Ke7 {[%clk 0:01:01.4]} 27. Bg4 {[%clk 0:00:32.6]} 27... Bxg4
{[%clk 0:00:48]} 28. hxg4 {[%clk 0:00:32.4]} 28... Ke6 {[%clk 0:00:48.1]} 29.
Bc3 {[%clk 0:00:26.7]} 29... a5 {[%clk 0:00:38.5]} 30. Bxb4 {[%clk 0:00:24.7]}
30... axb4 {[%clk 0:00:39.4]} 31. Rxd7 {[%clk 0:00:24.3]} 31... Rxa4 {[%clk
0:00:29.7]} 32. Rxb7 {[%clk 0:00:22.9]} 32... Ra1+ {[%clk 0:00:29.9]} 33. Kh2
{[%clk 0:00:22.9]} 33... e4 {[%clk 0:00:23.3]} 34. Rxb4 {[%clk 0:00:17.8]} 34...
e3 {[%clk 0:00:23.1]} 35. fxe3 {[%clk 0:00:16.3]} 35... fxe3 {[%clk 0:00:24]}
36. c5 {[%clk 0:00:16.5]} 36... Kd5 {[%clk 0:00:22.6]} 0-1

[Event "*** SCC Grand Prix: Titled Tuesday Blitz"]
[Site "Chess.com"]
[Date "2020.06.02"]
[Round "5"]
[White "Eliwood44"]
[Black "abfchess"]
[Result "0-1"]
[WhiteElo "2315"]
[BlackElo "2105"]
[TimeControl "180+1"]
[EndTime "10:58:19 PDT"]
[Termination "abfchess won by checkmate"]

1. d4 {[%clk 0:03:00.9]} 1... d5 {[%clk 0:02:57.3]} 2. Nf3 {[%clk 0:02:59.3]}
2... c6 {[%clk 0:02:57.1]} 3. c4 {[%clk 0:02:59.4]} 3... e6 {[%clk 0:02:55.7]}
4. Qc2 {[%clk 0:02:59.5]} 4... Nf6 {[%clk 0:02:53.4]} 5. Nbd2 {[%clk 0:02:59]}
5... Bb4 {[%clk 0:02:49.1]} 6. a3 {[%clk 0:02:58.2]} 6... Bxd2+ {[%clk
0:02:48.3]} 7. Bxd2 {[%clk 0:02:58]} 7... O-O {[%clk 0:02:47.3]} 8. g3 {[%clk
0:02:58.1]} 8... Ne4 {[%clk 0:02:47.3]} 9. Bg2 {[%clk 0:02:57]} 9... f5 {[%clk
0:02:47.1]} 10. O-O {[%clk 0:02:57.3]} 10... Nd7 {[%clk 0:02:47.1]} 11. Bf4
{[%clk 0:02:56.1]} 11... Qe7 {[%clk 0:02:43.8]} 12. h4 {[%clk 0:02:55.9]} 12...
h6 {[%clk 0:02:41.6]} 13. Ne5 {[%clk 0:02:51.7]} 13... Nxe5 {[%clk 0:02:28.9]}
14. dxe5 {[%clk 0:02:48.3]} 14... g5 {[%clk 0:02:17.5]} 15. hxg5 {[%clk
0:02:45.9]} 15... hxg5 {[%clk 0:02:18.4]} 16. Be3 {[%clk 0:02:43.4]} 16... f4
{[%clk 0:02:12.1]} 17. Bxe4 {[%clk 0:02:37.2]} 17... fxe3 {[%clk 0:02:00.4]} 18.
Bf3 {[%clk 0:02:33.2]} 18... Qg7 {[%clk 0:01:39.4]} 19. Qc3 {[%clk 0:02:21.6]}
19... exf2+ {[%clk 0:01:37.5]} 20. Rxf2 {[%clk 0:02:22.5]} 20... Bd7 {[%clk
0:01:36.7]} 21. Raf1 {[%clk 0:02:20.5]} 21... g4 {[%clk 0:01:34.6]} 22. Bg2
{[%clk 0:02:19.8]} 22... Rxf2 {[%clk 0:01:35.5]} 23. Rxf2 {[%clk 0:02:19.9]}
23... Rf8 {[%clk 0:01:35.3]} 24. Rf4 {[%clk 0:02:19.5]} 24... Rxf4 {[%clk
0:01:20.9]} 25. gxf4 {[%clk 0:02:20.4]} 25... Qg6 {[%clk 0:01:09.6]} 26. e4
{[%clk 0:02:16.4]} 26... dxe4 {[%clk 0:00:59]} 27. Qd4 {[%clk 0:02:16.1]} 27...
e3 {[%clk 0:00:40.1]} 28. Qxd7 {[%clk 0:02:07]} 28... Qb1+ {[%clk 0:00:38.8]}
29. Kh2 {[%clk 0:01:58.4]} 29... e2 {[%clk 0:00:38.5]} 30. Qxe6+ {[%clk
0:01:55.6]} 30... Kf8 {[%clk 0:00:37.9]} 31. Qf6+ {[%clk 0:01:52.5]} 31... Ke8
{[%clk 0:00:37.9]} 32. Qh8+ {[%clk 0:01:38.9]} 32... Ke7 {[%clk 0:00:35.7]} 33.
Qg7+ {[%clk 0:01:36]} 33... Ke8 {[%clk 0:00:35.5]} 34. e6 {[%clk 0:01:32]} 34...
g3+ {[%clk 0:00:30.3]} 35. Qxg3 {[%clk 0:01:09.2]} 35... Qh7+ {[%clk 0:00:29.2]}
36. Bh3 {[%clk 0:01:06.8]} 36... Qb1 {[%clk 0:00:28]} 37. Qg8+ {[%clk
0:01:03.1]} 37... Ke7 {[%clk 0:00:27.7]} 38. Qf7+ {[%clk 0:00:56.3]} 38... Kd6
{[%clk 0:00:28]} 39. e7 {[%clk 0:00:22.2]} 39... e1=Q {[%clk 0:00:27.3]} 40.
e8=Q {[%clk 0:00:17.9]} 40... Qg1# {[%clk 0:00:26.6]} 0-1

[Event "*** SCC Grand Prix: Titled Tuesday Blitz"]
[Site "Chess.com"]
[Date "2020.06.02"]
[Round "5"]
[White "jlandaw"]
[Black "FightingChess"]
[Result "1-0"]
[WhiteElo "2526"]
[BlackElo "2365"]
[TimeControl "180+1"]
[EndTime "10:58:20 PDT"]
[Termination "jlandaw won on time"]

1. e4 {[%clk 0:03:00.9]} 1... e6 {[%clk 0:02:59.5]} 2. d4 {[%clk 0:02:57.3]}
2... d5 {[%clk 0:02:59.7]} 3. e5 {[%clk 0:02:57.4]} 3... c5 {[%clk 0:02:59.4]}
4. c3 {[%clk 0:02:58]} 4... Qb6 {[%clk 0:02:59.4]} 5. Nf3 {[%clk 0:02:58.3]}
5... Nc6 {[%clk 0:03:00]} 6. Bd3 {[%clk 0:02:58.1]} 6... cxd4 {[%clk 0:02:59.9]}
7. cxd4 {[%clk 0:02:59]} 7... Bd7 {[%clk 0:03:00.1]} 8. O-O {[%clk 0:02:59.3]}
8... Nxd4 {[%clk 0:03:00.3]} 9. Nxd4 {[%clk 0:03:00.2]} 9... Qxd4 {[%clk
0:03:00.9]} 10. Nc3 {[%clk 0:03:00.4]} 10... a6 {[%clk 0:03:00.8]} 11. Qe2
{[%clk 0:03:00.1]} 11... Ne7 {[%clk 0:03:00.8]} 12. Kh1 {[%clk 0:03:00.7]} 12...
Nc6 {[%clk 0:03:00.8]} 13. f4 {[%clk 0:03:01.1]} 13... Nb4 {[%clk 0:02:56.4]}
14. Rd1 {[%clk 0:02:54.2]} 14... Bc5 {[%clk 0:02:56.2]} 15. Bxa6 {[%clk
0:02:53.6]} 15... Qf2 {[%clk 0:02:56.2]} 16. Qxf2 {[%clk 0:02:53.2]} 16... Bxf2
{[%clk 0:02:57.1]} 17. Be2 {[%clk 0:02:52.6]} 17... Bc6 {[%clk 0:02:38.6]} 18.
a3 {[%clk 0:02:38.2]} 18... d4 {[%clk 0:01:55.8]} 19. Nb5 {[%clk 0:02:20.4]}
19... Nc2 {[%clk 0:01:27.5]} 20. Nd6+ {[%clk 0:01:54.2]} 20... Ke7 {[%clk
0:01:24.3]} 21. Rb1 {[%clk 0:01:40.4]} 21... h5 {[%clk 0:01:13.7]} 22. Bd2
{[%clk 0:01:32.9]} 22... h4 {[%clk 0:01:05.9]} 23. h3 {[%clk 0:01:25.6]} 23...
Ne3 {[%clk 0:00:40.6]} 24. Bxe3 {[%clk 0:01:25.6]} 24... dxe3 {[%clk 0:00:39.3]}
25. Rd4 {[%clk 0:01:14.2]} 25... f6 {[%clk 0:00:20.4]} 26. Rc1 {[%clk
0:01:03.3]} 26... Rad8 {[%clk 0:00:17.2]} 27. Rc2 {[%clk 0:00:53.2]} 27... g5
{[%clk 0:00:17]} 28. Rb4 {[%clk 0:00:21]} 28... Rd7 {[%clk 0:00:11.2]} 29. Nc4
{[%clk 0:00:16.3]} 29... gxf4 {[%clk 0:00:10.2]} 30. exf6+ {[%clk 0:00:14.9]}
30... Kxf6 {[%clk 0:00:10.2]} 31. Na5 {[%clk 0:00:15]} 31... Bd5 {[%clk
0:00:07.4]} 32. Rxf4+ {[%clk 0:00:14.5]} 32... Ke7 {[%clk 0:00:03.4]} 33. Rg4
{[%clk 0:00:14.6]} 33... b6 {[%clk 0:00:00.1]} 34. Nc6+ {[%clk 0:00:13.6]} 1-0

[Event "*** SCC Grand Prix: Titled Tuesday Blitz"]
[Site "Chess.com"]
[Date "2020.06.02"]
[Round "5"]
[White "zaur-mammadov"]
[Black "Zkid"]
[Result "1-0"]
[WhiteElo "2604"]
[BlackElo "2754"]
[TimeControl "180+1"]
[EndTime "10:58:25 PDT"]
[Termination "zaur-mammadov won by resignation"]

1. e4 {[%clk 0:03:00.9]} 1... e6 {[%clk 0:02:59.8]} 2. d4 {[%clk 0:03:00.2]}
2... d5 {[%clk 0:03:00]} 3. e5 {[%clk 0:03:00.8]} 3... c5 {[%clk 0:03:00]} 4. c3
{[%clk 0:03:01.5]} 4... Nc6 {[%clk 0:03:00.4]} 5. Nf3 {[%clk 0:03:02.2]} 5...
Bd7 {[%clk 0:03:00.5]} 6. Na3 {[%clk 0:03:02.7]} 6... cxd4 {[%clk 0:02:59]} 7.
cxd4 {[%clk 0:03:03.6]} 7... Nge7 {[%clk 0:02:58.6]} 8. Nc2 {[%clk 0:03:03]}
8... Nf5 {[%clk 0:02:56.5]} 9. Bd3 {[%clk 0:03:03.5]} 9... Nh4 {[%clk
0:02:55.6]} 10. O-O {[%clk 0:03:00.2]} 10... Be7 {[%clk 0:02:51.4]} 11. Nxh4
{[%clk 0:02:50.5]} 11... Bxh4 {[%clk 0:02:50.8]} 12. Qg4 {[%clk 0:02:51]} 12...
g6 {[%clk 0:02:48.5]} 13. Bh6 {[%clk 0:02:49]} 13... Be7 {[%clk 0:02:46.6]} 14.
Rac1 {[%clk 0:02:38.6]} 14... Qb6 {[%clk 0:02:44.6]} 15. b4 {[%clk 0:02:33.8]}
15... Nxb4 {[%clk 0:02:29.6]} 16. Rb1 {[%clk 0:02:31.9]} 16... Qa5 {[%clk
0:02:27.3]} 17. Bd2 {[%clk 0:02:26.9]} 17... Qxa2 {[%clk 0:02:00.6]} 18. Bxb4
{[%clk 0:02:18.8]} 18... Bxb4 {[%clk 0:01:57.7]} 19. Rxb4 {[%clk 0:02:17.8]}
19... Qa5 {[%clk 0:01:57.9]} 20. Rxb7 {[%clk 0:02:14.6]} 20... Bc6 {[%clk
0:01:56.9]} 21. Rb3 {[%clk 0:02:06.7]} 21... O-O {[%clk 0:01:56.2]} 22. Ra1
{[%clk 0:02:05]} 22... Qc7 {[%clk 0:01:51.8]} 23. Ne3 {[%clk 0:02:03.4]} 23...
a5 {[%clk 0:01:49.1]} 24. Qh4 {[%clk 0:01:53.7]} 24... a4 {[%clk 0:01:45.1]} 25.
Rc3 {[%clk 0:01:48.4]} 25... Kg7 {[%clk 0:01:15.9]} 26. Qf6+ {[%clk 0:01:45.8]}
26... Kg8 {[%clk 0:01:16.1]} 27. Ng4 {[%clk 0:01:46.3]} 27... h5 {[%clk
0:01:16.1]} 28. Nh6+ {[%clk 0:01:23.1]} 28... Kh7 {[%clk 0:01:15.8]} 29. Nxf7
{[%clk 0:01:23.7]} 29... Qxf7 {[%clk 0:01:13.9]} 30. Qxf7+ {[%clk 0:01:22.5]}
30... Rxf7 {[%clk 0:01:14.8]} 31. Rxc6 {[%clk 0:01:22.5]} 31... Rf4 {[%clk
0:01:15.4]} 32. Rxe6 {[%clk 0:01:14.7]} 32... Rxd4 {[%clk 0:01:14.7]} 33. Bxg6+
{[%clk 0:01:13.8]} 33... Kg7 {[%clk 0:01:15.1]} 34. Bxh5 {[%clk 0:01:11.5]}
34... a3 {[%clk 0:01:15.5]} 35. Rb6 {[%clk 0:01:01.4]} 35... Rd2 {[%clk
0:01:10.4]} 36. g4 {[%clk 0:00:52.3]} 36... a2 {[%clk 0:01:06.4]} 37. g5 {[%clk
0:00:49.2]} 37... Rf8 {[%clk 0:01:05.4]} 38. Rf6 {[%clk 0:00:46.3]} 38... Rb8
{[%clk 0:01:05.3]} 39. Bg6 {[%clk 0:00:36.3]} 39... Re2 {[%clk 0:00:48.1]} 40.
h4 {[%clk 0:00:28.2]} 40... Rbb2 {[%clk 0:00:44]} 41. h5 {[%clk 0:00:25.8]}
41... Rxe5 {[%clk 0:00:42]} 42. h6+ {[%clk 0:00:22.4]} 42... Kg8 {[%clk
0:00:42.3]} 43. h7+ {[%clk 0:00:20.4]} 43... Kg7 {[%clk 0:00:42.5]} 44. Rf7+
{[%clk 0:00:20.6]} 44... Kxg6 {[%clk 0:00:42.7]} 45. h8=Q {[%clk 0:00:20.6]}
45... Rb1+ {[%clk 0:00:43]} 46. Kg2 {[%clk 0:00:19.5]} 46... Rxg5+ {[%clk
0:00:42.8]} 47. Kf3 {[%clk 0:00:19.4]} 47... Kxf7 {[%clk 0:00:40.9]} 48. Rxa2
{[%clk 0:00:18.3]} 48... Rb7 {[%clk 0:00:36.2]} 49. Ra6 {[%clk 0:00:17.6]} 49...
Rf5+ {[%clk 0:00:35.3]} 50. Kg4 {[%clk 0:00:17.8]} 50... Rxf2 {[%clk 0:00:35.5]}
51. Qh7+ {[%clk 0:00:18.1]} 51... Ke8 {[%clk 0:00:35.8]} 1-0

[Event "*** SCC Grand Prix: Titled Tuesday Blitz"]
[Site "Chess.com"]
[Date "2020.06.02"]
[Round "5"]
[White "wonderfultime"]
[Black "Quaternitychess"]
[Result "1-0"]
[WhiteElo "2992"]
[BlackElo "2821"]
[TimeControl "180+1"]
[EndTime "10:58:27 PDT"]
[Termination "wonderfultime won by checkmate"]

1. d4 {[%clk 0:03:00.9]} 1... d5 {[%clk 0:02:59.3]} 2. Nf3 {[%clk 0:03:01.4]}
2... Bf5 {[%clk 0:02:58.5]} 3. Bf4 {[%clk 0:03:00.6]} 3... e6 {[%clk 0:02:58.9]}
4. e3 {[%clk 0:03:01]} 4... Bd6 {[%clk 0:02:59.4]} 5. Bg3 {[%clk 0:03:01.4]}
5... Nf6 {[%clk 0:02:58.8]} 6. Bd3 {[%clk 0:03:01.9]} 6... Ne4 {[%clk
0:02:59.2]} 7. O-O {[%clk 0:02:53.3]} 7... Nxg3 {[%clk 0:02:56.6]} 8. hxg3
{[%clk 0:02:52.7]} 8... Bg4 {[%clk 0:02:57]} 9. c4 {[%clk 0:02:50.7]} 9... c6
{[%clk 0:02:56.7]} 10. Nc3 {[%clk 0:02:47.2]} 10... Nd7 {[%clk 0:02:54.9]} 11.
Qb3 {[%clk 0:02:45.6]} 11... Rb8 {[%clk 0:02:54.4]} 12. e4 {[%clk 0:02:42]}
12... dxc4 {[%clk 0:02:53.4]} 13. Bxc4 {[%clk 0:02:38.3]} 13... O-O {[%clk
0:02:52.1]} 14. Be2 {[%clk 0:02:32.6]} 14... a6 {[%clk 0:02:35.6]} 15. Rac1
{[%clk 0:02:29.4]} 15... c5 {[%clk 0:02:03.6]} 16. Rfd1 {[%clk 0:02:27.1]} 16...
b5 {[%clk 0:01:43.1]} 17. e5 {[%clk 0:02:13.2]} 17... c4 {[%clk 0:01:33.8]} 18.
Qc2 {[%clk 0:02:12.5]} 18... Bc7 {[%clk 0:01:10.2]} 19. Ne4 {[%clk 0:01:57.9]}
19... Nb6 {[%clk 0:01:01.7]} 20. b3 {[%clk 0:01:49.9]} 20... Bf5 {[%clk
0:00:42.9]} 21. bxc4 {[%clk 0:01:37.6]} 21... Nxc4 {[%clk 0:00:42.9]} 22. Bxc4
{[%clk 0:01:32.1]} 22... bxc4 {[%clk 0:00:43.8]} 23. Nh4 {[%clk 0:01:18]} 23...
Bxe4 {[%clk 0:00:41.7]} 24. Qxe4 {[%clk 0:01:18.9]} 24... Qd5 {[%clk 0:00:40.3]}
25. Qe2 {[%clk 0:01:19.3]} 25... Rb4 {[%clk 0:00:33.8]} 26. Nf3 {[%clk
0:01:12.2]} 26... Rc8 {[%clk 0:00:32.6]} 27. a3 {[%clk 0:01:04.3]} 27... Ra4
{[%clk 0:00:28.1]} 28. Qc2 {[%clk 0:01:04.5]} 28... Qc6 {[%clk 0:00:18.2]} 29.
Ng5 {[%clk 0:01:01.2]} 29... g6 {[%clk 0:00:18.5]} 30. Ne4 {[%clk 0:01:01.5]}
30... Kg7 {[%clk 0:00:15.5]} 31. Nc5 {[%clk 0:00:55.8]} 31... Rxa3 {[%clk
0:00:15.5]} 32. Qxc4 {[%clk 0:00:56.3]} 32... Qb6 {[%clk 0:00:14]} 33. Nd7
{[%clk 0:00:51]} 33... Qb5 {[%clk 0:00:13]} 34. Qc6 {[%clk 0:00:29.8]} 34... Rd8
{[%clk 0:00:12.9]} 35. Qxb5 {[%clk 0:00:29]} 35... axb5 {[%clk 0:00:12]} 36.
Rxc7 {[%clk 0:00:29.6]} 36... b4 {[%clk 0:00:12.6]} 37. Nc5 {[%clk 0:00:29.2]}
37... Kh6 {[%clk 0:00:13.1]} 38. Rxf7 {[%clk 0:00:29.1]} 38... b3 {[%clk
0:00:13.3]} 39. Rb7 {[%clk 0:00:29.5]} 39... b2 {[%clk 0:00:13.7]} 40. Rxb2
{[%clk 0:00:29.3]} 40... Rxg3 {[%clk 0:00:14.6]} 41. fxg3 {[%clk 0:00:29.2]}
41... Rxd4 {[%clk 0:00:15.3]} 42. Rxd4 {[%clk 0:00:29.3]} 42... Kg5 {[%clk
0:00:16.2]} 43. Rf4 {[%clk 0:00:29.5]} 43... h5 {[%clk 0:00:15.6]} 44. Nxe6+
{[%clk 0:00:29.6]} 44... Kh6 {[%clk 0:00:16.5]} 45. Rb8 {[%clk 0:00:29.9]} 45...
g5 {[%clk 0:00:17.4]} 46. Rf6+ {[%clk 0:00:29.7]} 46... Kh7 {[%clk 0:00:17.6]}
47. Rb7+ {[%clk 0:00:30.3]} 47... Kg8 {[%clk 0:00:17.6]} 48. Rf8# {[%clk
0:00:31.2]} 1-0

[Event "*** SCC Grand Prix: Titled Tuesday Blitz"]
[Site "Chess.com"]
[Date "2020.06.02"]
[Round "5"]
[White "Superfelix"]
[Black "Iljushin_Alexey"]
[Result "1/2-1/2"]
[WhiteElo "2499"]
[BlackElo "2659"]
[TimeControl "180+1"]
[EndTime "10:58:27 PDT"]
[Termination "Game drawn by agreement"]

1. e4 {[%clk 0:03:00.9]} 1... c6 {[%clk 0:02:59.9]} 2. Nc3 {[%clk 0:02:52.6]}
2... d5 {[%clk 0:03:00]} 3. Qe2 {[%clk 0:02:53.1]} 3... d4 {[%clk 0:02:59.1]} 4.
Nd1 {[%clk 0:02:53.1]} 4... c5 {[%clk 0:02:59.7]} 5. d3 {[%clk 0:02:53.6]} 5...
Nc6 {[%clk 0:02:59.8]} 6. f4 {[%clk 0:02:54]} 6... e5 {[%clk 0:02:59.7]} 7. Nf3
{[%clk 0:02:54.5]} 7... Bd6 {[%clk 0:02:57.5]} 8. g3 {[%clk 0:02:54.7]} 8...
Nge7 {[%clk 0:02:56]} 9. Bg2 {[%clk 0:02:55.1]} 9... f6 {[%clk 0:02:48.3]} 10.
O-O {[%clk 0:02:55]} 10... Be6 {[%clk 0:02:47.3]} 11. Nf2 {[%clk 0:02:50.6]}
11... Qd7 {[%clk 0:02:44.9]} 12. f5 {[%clk 0:02:50.6]} 12... Bf7 {[%clk
0:02:44.4]} 13. g4 {[%clk 0:02:51.1]} 13... g5 {[%clk 0:02:38.1]} 14. fxg6
{[%clk 0:02:46.9]} 14... hxg6 {[%clk 0:02:37.7]} 15. h4 {[%clk 0:02:43.8]} 15...
Be6 {[%clk 0:02:31.2]} 16. Bh3 {[%clk 0:02:42.4]} 16... O-O-O {[%clk 0:02:29.7]}
17. Bd2 {[%clk 0:02:38.9]} 17... Kb8 {[%clk 0:02:29.3]} 18. Kh2 {[%clk
0:02:36.2]} 18... Rh7 {[%clk 0:02:27.7]} 19. Rg1 {[%clk 0:02:36.4]} 19... Rdh8
{[%clk 0:02:27.2]} 20. Rg3 {[%clk 0:02:36.6]} 20... Rxh4 {[%clk 0:02:24.1]} 21.
Nxh4 {[%clk 0:02:36.2]} 21... Rxh4 {[%clk 0:02:23.5]} 22. Qf3 {[%clk 0:02:35.2]}
22... f5 {[%clk 0:02:19.4]} 23. gxf5 {[%clk 0:02:32.4]} 23... gxf5 {[%clk
0:02:17.5]} 24. Kg1 {[%clk 0:02:27.4]} 24... f4 {[%clk 0:02:13.7]} 25. Bxe6
{[%clk 0:02:26.7]} 25... Qxe6 {[%clk 0:02:13.7]} 26. Rg4 {[%clk 0:02:24.7]}
26... Rh8 {[%clk 0:02:11.8]} 27. Kg2 {[%clk 0:02:22.4]} 27... a5 {[%clk
0:02:06.7]} 28. Rh1 {[%clk 0:02:19.1]} 28... Rxh1 {[%clk 0:02:05]} 29. Kxh1
{[%clk 0:02:20]} 29... Qxa2 {[%clk 0:02:04.2]} 30. Bc1 {[%clk 0:02:14.7]} 30...
Qb1 {[%clk 0:02:02.1]} 31. Qd1 {[%clk 0:02:10.6]} 31... Nb4 {[%clk 0:02:01.8]}
32. Rh4 {[%clk 0:02:01.5]} 32... Qxc2 {[%clk 0:01:57.5]} 33. Qxc2 {[%clk
0:02:01.1]} 33... Nxc2 {[%clk 0:01:57.7]} 34. Rh6 {[%clk 0:01:59.6]} 34... Kc7
{[%clk 0:01:57.1]} 35. Kg2 {[%clk 0:01:54]} 35... a4 {[%clk 0:01:53.8]} 36. Kf1
{[%clk 0:01:51.7]} 36... b5 {[%clk 0:01:51.9]} 37. Ke2 {[%clk 0:01:51.3]} 37...
c4 {[%clk 0:01:51.2]} 38. Ng4 {[%clk 0:01:46]} 38... cxd3+ {[%clk 0:01:39.6]}
39. Kxd3 {[%clk 0:01:44.8]} 39... Nb4+ {[%clk 0:01:39.7]} 40. Ke2 {[%clk
0:01:44.7]} 40... Nbc6 {[%clk 0:01:39.5]} 41. Bd2 {[%clk 0:01:42.1]} 41... b4
{[%clk 0:01:38.6]} 42. Kd3 {[%clk 0:01:41.8]} 42... a3 {[%clk 0:01:35.8]} 43.
bxa3 {[%clk 0:01:41.6]} 43... bxa3 {[%clk 0:01:35.9]} 44. Kc4 {[%clk 0:01:33.4]}
44... Nc8 {[%clk 0:01:29.2]} 45. Nf6 {[%clk 0:01:27.6]} 45... Nb6+ {[%clk
0:01:28]} 46. Kb3 {[%clk 0:01:27.9]} 46... Be7 {[%clk 0:01:17.9]} 47. Nd5+
{[%clk 0:01:22.9]} 47... Nxd5 {[%clk 0:01:15.3]} 48. exd5 {[%clk 0:01:23.8]}
48... Nd8 {[%clk 0:01:14]} 49. d6+ {[%clk 0:01:14.7]} 49... Bxd6 {[%clk
0:01:00.6]} 50. Ba5+ {[%clk 0:01:14.6]} 50... Kd7 {[%clk 0:01:00.9]} 51. Bxd8
{[%clk 0:01:14.7]} 51... f3 {[%clk 0:01:00.8]} 52. Bh4 {[%clk 0:01:05.6]} 52...
e4 {[%clk 0:01:00.8]} 53. Rf6 {[%clk 0:00:50.8]} 53... Be5 {[%clk 0:01:00.6]}
54. Rf7+ {[%clk 0:00:43.7]} 54... Ke6 {[%clk 0:01:00.9]} 55. Re7+ {[%clk
0:00:43.9]} 55... Kf5 {[%clk 0:01:01.2]} 56. Kxa3 {[%clk 0:00:43.5]} 56... e3
{[%clk 0:01:01.4]} 57. Kb3 {[%clk 0:00:42]} 57... f2 {[%clk 0:00:51.8]} 58. Rf7+
{[%clk 0:00:42.2]} 58... Ke4 {[%clk 0:00:51.4]} 59. Bxf2 {[%clk 0:00:36.9]}
59... exf2 {[%clk 0:00:51.2]} 60. Rxf2 {[%clk 0:00:37.8]} 60... d3 {[%clk
0:00:50.6]} 1/2-1/2